bitfinex/quotes_ETHUSD_20230702
["timestamp","ask_amount","ask_price","bid_price","bid_amount"]
[1688336762895,0.02777511,1948.5,1948.1,6.25]
[1688336763059,0.02777511,1948.5,1948.1,0.99781]
[1688336763060,5.447,1948.4,1948.1,0.99781]
[1688336763255,0.03768674,1948.2,1947.8,0.99781]
[1688336763475,2.68752184,1948.1,1947.8,0.99781]
[1688336763674,3.0,1948.0,1947.8,0.99781]
[1688336764566,3.0,1948.0,1947.6,0.99781]
[1688336765364,0.53678741,1948.1,1948.0,0.99781]
[1688336765671,2.31,1948.8,1948.2,0.99781]
[1688336765672,0.9533912,1948.7,1948.2,0.99781]
[1688336765861,0.9533912,1948.7,1947.6,2.0]
[1688336765862,2.68752184,1948.6,1947.8,0.99781]
[1688336766066,2.68752184,1948.6,1947.1,2.0]
[1688336766067,0.26875218,1948.5,1948.2,0.99781]
[1688336766267,2.68752184,1948.4,1948.2,0.99781]
[1688336766710,0.26875218,1948.5,1947.5,4.0]
[1688336766711,0.26875218,1948.5,1948.4,0.99781]
[1688336767014,0.53675385,1948.7,1948.4,0.99781]
[1688336767316,2.68752184,1948.6,1948.4,0.43654187]
[1688336767606,2.68752184,1948.6,1948.2,0.43654187]
[1688336767769,0.41208205,1948.8,1948.2,0.43654187]
[1688336768102,2.17724546,1948.9,1948.4,0.43654187]
[1688336768103,1.69264684,1948.9,1948.4,0.43654187]
[1688336768402,2.304,1948.8,1948.4,0.43654187]
[1688336768601,5.447,1948.7,1948.4,0.43654187]
[1688336768768,5.447,1948.7,1948.2,0.43654187]
[1688336768769,0.5447,1948.6,1948.2,0.43654187]
[1688336769121,7.757,1948.5,1948.2,0.43654187]
[1688336769288,3.5447,1948.6,1948.2,0.43654187]
[1688336769289,3.0,1948.4,1948.2,0.43654187]
[1688336769486,3.5447,1948.6,1948.2,0.43654187]
[1688336769682,0.5447,1948.6,1948.2,0.43654187]
[1688336770275,12.83167,1948.3,1948.2,0.43654187]
[1688336770571,17.114837,1948.3,1948.2,0.43654187]
[1688336775885,17.114837,1948.3,1948.0,0.43654187]
[1688336775886,19.80235884,1948.3,1948.0,0.43654187]
[1688336776087,15.3996,1948.1,1948.0,0.43654187]
[1688336776280,18.08712184,1948.1,1947.8,0.43654187]
[1688336776471,3.0,1948.0,1947.8,0.43654187]
[1688336776672,15.70118,1947.9,1947.4,0.43654187]
[1688336776867,15.70118,1947.9,1947.8,0.43654187]
[1688336777116,18.70118,1947.9,1947.8,0.43654187]
[1688336777328,18.70118,1947.9,1947.7,0.43654187]
[1688336777526,15.83497,1947.8,1947.7,0.43654187]
[1688336777679,17.705153,1947.8,1947.7,0.43654187]
[1688336779011,17.655153,1947.8,1947.3,2.0]
[1688336779225,17.655153,1947.8,1947.3,2.68752184]
[1688336779442,17.655153,1947.8,1947.2,0.01639375]
[1688336779628,0.03039782,1947.7,1947.2,3.20391559]
[1688336779809,0.03039782,1947.7,1947.2,2.70391559]
[1688336779810,12.83661,1947.6,1947.2,2.70391559]
[1688336780315,12.83661,1947.6,1947.2,3.20391559]
[1688336780544,12.83661,1947.6,1947.3,2.68752184]
[1688336781814,1.027714,1948.3,1947.5,7.947]
[1688336782185,1.027714,1948.3,1947.6,5.18752184]
[1688336782186,5.13332,1948.1,1947.6,5.18752184]
[1688336782716,10.26664,1948.1,1947.6,5.18752184]
[1688336782945,12.83324,1948.1,1947.6,5.18752184]
[1688336783140,10.26664,1948.1,1947.6,5.18752184]
[1688336784339,14.416553,1948.1,1947.6,4.68752184]
[1688336784519,3.0,1948.0,1947.6,4.68752184]
[1688336784716,12.83445,1947.9,1947.6,2.0]
[1688336784966,12.83445,1947.9,1947.1,7.0185]
[1688336785117,4.30951433,1947.8,1947.4,2.5]
[1688336785429,12.83577,1947.7,1947.4,2.5]
[1688336785627,12.83577,1947.7,1947.4,2.0]
[1688336786040,12.83577,1947.7,1947.4,2.5]
[1688336786483,12.83577,1947.7,1947.4,2.0]
[1688336786693,1.283577,1947.6,1947.2,3.18752184]
[1688336786837,1.283577,1947.6,1947.3,2.0]
[1688336786838,10.26968,1947.5,1947.3,2.0]
[1688336787235,12.83707,1947.5,1947.3,2.0]
[1688336787884,12.83707,1947.5,1947.2,0.5]
[1688336788184,4.283707,1947.4,1947.3,2.68752184]
[1688336788484,10.2701,1947.4,1947.2,0.5]
[1688336788635,12.83762,1947.4,1947.1,4.5185]
[1688336788835,12.83762,1947.4,1947.1,5.20602184]
[1688336789085,12.83892,1947.2,1947.1,5.20602184]
[1688336789937,12.83892,1947.2,1947.1,2.68752184]
[1688336790354,12.83892,1947.2,1946.5,3.3857]
[1688336790664,15.40844,1947.0,1946.7,2.0]
[1688336790865,17.249284,1947.0,1946.7,2.0]
[1688336791643,17.249284,1947.0,1946.5,5.17822184]
[1688336791888,17.249284,1947.0,1946.6,2.5]
[1688336793275,17.249284,1947.0,1946.5,5.17822184]
[1688336793447,17.249284,1947.0,1946.6,2.0]
[1688336793777,12.84157,1946.8,1946.5,2.4907]
[1688336794670,12.84157,1946.8,1946.5,4.9907]
[1688336795178,12.84157,1946.8,1946.5,2.4907]
[1688336795779,3.0,1946.7,1946.5,2.4907]
[1688336795982,15.41148,1946.6,1946.5,2.4907]
[1688336796178,17.252628,1946.6,1946.1,2.5]
[1688336797488,3.0,1946.5,1946.1,2.5]
[1688336797641,15.41322,1946.4,1946.1,2.5]
[1688336798490,12.84435,1946.4,1946.1,2.5]
[1688336798984,12.84435,1946.4,1946.3,2.0]
[1688336799190,14.128785,1946.4,1946.3,2.0]
[1688336800059,14.128785,1946.4,1946.1,2.5]
[1688336801277,14.128785,1946.4,1946.1,0.5]
[1688336801691,14.128785,1946.4,1946.1,3.18752184]
[1688336801851,12.84435,1946.4,1946.1,3.18752184]
[1688336802051,2.5682,1946.9,1946.5,2.0]
[1688336802261,12.8412,1946.9,1946.6,2.68752184]
[1688336802464,10.273,1946.9,1946.6,2.68752184]
[1688336802654,10.273,1946.9,1946.6,2.70392065]
[1688336802870,12.84118,1946.9,1946.6,2.70392065]
[1688336803249,12.84118,1946.9,1946.6,8.15092065]
[1688336803450,2.56806,1947.0,1946.8,2.5]
[1688336803451,5.13621,1947.0,1946.8,2.5]
[1688336803676,10.27242,1947.0,1946.8,2.5]
[1688336803873,12.84047,1947.0,1946.8,2.5]
[1688336804948,2.56793,1947.1,1946.9,2.68752184]
[1688336804949,5.13595,1947.1,1946.9,2.68752184]
[1688336805149,5.13616,1947.0,1946.9,2.68752184]
[1688336805553,10.27232,1947.0,1946.9,2.68752184]
[1688336805753,10.27232,1947.0,1946.8,2.51639713]
[1688336806064,10.27232,1947.0,1946.9,2.68752184]
[1688336806993,12.84037,1947.0,1946.9,2.68752184]
[1688336807324,12.84037,1947.0,1946.8,2.5]
[1688336807449,12.84037,1947.0,1946.8,5.18752184]
[1688336807875,12.84037,1947.0,1946.8,2.5]
[1688336809564,14.124407,1947.0,1946.8,2.0]
[1688336809772,14.124407,1947.0,1946.6,2.5]
[1688336811461,3.0,1946.9,1946.3,2.1292]
[1688336811661,3.0,1946.9,1946.3,4.6292]
[1688336811662,20.8473,1946.8,1946.3,4.6292]
[1688336811898,20.8473,1946.8,1946.3,2.5]
[1688336812092,3.03521009,1946.7,1946.3,2.5]
[1688336812280,15.41162,1946.6,1946.2,30.0]
[1688336812470,1.541162,1946.5,1946.2,30.0]
[1688336812665,15.41306,1946.4,1946.2,30.0]
[1688336812870,0.02724501,1946.3,1946.2,30.0]
[1688336813088,12.84487,1946.3,1946.2,40.276]
[1688336813596,10.2759,1946.3,1946.2,42.96352184]
[1688336814069,12.84487,1946.3,1946.2,42.96352184]
[1688336814597,10.2759,1946.3,1946.2,42.96352184]
[1688336815262,12.84487,1946.3,1946.2,42.96352184]
[1688336817526,15.41384,1946.3,1946.2,40.276]
[1688336817819,15.44005753,1946.3,1946.2,40.276]
[1688336818024,18.41384,1946.3,1946.2,40.276]
[1688336819490,8.13795,1946.3,1946.2,40.276]
[1688336819687,13.2759,1946.3,1946.2,40.276]
[1688336820388,15.84487,1946.3,1946.2,40.276]
[1688336820586,17.68625,1946.3,1946.2,40.276]
[1688336822210,15.84487,1946.3,1946.2,40.276]
[1688336822430,5.13795,1946.3,1946.2,42.96352184]
[1688336822632,10.2759,1946.3,1946.2,42.96352184]
[1688336823500,5.13782,1946.4,1946.2,42.96352184]
[1688336823701,10.27577,1946.4,1946.3,2.70392317]
[1688336823904,2.56829,1946.9,1946.5,0.5]
[1688336824107,2.56829,1946.9,1946.6,18.40852184]
[1688336824108,10.2728,1946.9,1946.6,18.40852184]
[1688336824316,5.13629,1947.0,1946.7,5.2039198]
[1688336824636,10.27242,1947.0,1946.8,10.273]
[1688336824789,12.84047,1947.0,1946.8,12.96052184]
[1688336824995,12.84047,1947.0,1946.9,2.68752184]
[1688336825229,12.84047,1947.0,1946.9,13.01052184]
[1688336827125,2.56758,1947.4,1946.9,13.01052184]
[1688336827303,8.13531,1947.3,1947.1,0.5]
[1688336827628,5.13531,1947.3,1947.2,13.00852184]
[1688336828101,5.13521,1947.4,1947.2,13.00852184]
[1688336828102,5.13517,1947.4,1947.2,13.00852184]
[1688336828624,0.1,1948.4,1947.4,2.5]
[1688336828793,5.13409,1947.8,1947.5,18.45452184]
[1688336828998,10.26808,1947.8,1947.5,18.45452184]
[1688336829410,5.13399,1947.8,1947.5,18.45452184]
[1688336829833,4.88399,1947.8,1947.6,8.13452184]
[1688336829997,5.1336,1948.0,1947.7,20.95352184]
[1688336830206,2.5664,1948.3,1947.9,7.947]
[1688336830207,5.13281,1948.3,1947.9,7.947]
[1688336830406,5.13281,1948.3,1948.0,13.00452184]
[1688336830407,10.26562,1948.3,1948.0,13.00452184]
[1688336830808,5.23255,1948.4,1948.2,2.68752184]
[1688336831029,10.36514,1948.4,1948.3,10.815]
[1688336831251,5.23255,1948.4,1948.3,13.50252184]
[1688336831850,5.23255,1948.4,1948.3,18.94952184]
[1688336832017,0.1,1948.4,1948.3,18.94952184]
[1688336832804,0.1,1948.4,1948.3,20.94952184]
[1688336833436,0.1,1948.4,1948.3,26.35047402]
[1688336833612,0.1,1948.4,1948.3,28.21385852]
[1688336835201,0.1,1948.4,1948.3,28.73035852]
[1688336835448,0.1,1948.5,1948.4,10.553]
[1688336835651,0.1,1948.5,1948.4,23.55552184]
[1688336835944,0.1,1948.5,1948.4,26.85961416]
[1688336836119,0.1,1948.5,1948.4,31.99202416]
[1688336836321,0.1,1948.5,1948.4,34.42093391]
[1688336836652,0.1,1948.5,1948.4,39.82108362]
[1688336836804,0.1,1948.5,1948.4,34.68867362]
[1688336837010,0.1,1948.5,1948.4,28.70961416]
[1688336838743,0.1,1948.5,1948.4,58.70961416]
[1688336839636,0.1,1948.5,1948.4,63.84202416]
[1688336839843,0.0054176,1948.8,1948.7,13.053]
[1688336840012,0.0054176,1948.8,1948.7,29.14027402]
[1688336840213,0.0054176,1948.8,1948.7,29.15665515]
[1688336840514,0.1,1949.0,1948.9,13.5695]
[1688336840716,0.1,1949.0,1948.9,26.05252184]
[1688336841111,0.1,1949.0,1948.9,26.25781584]
[1688336841316,0.1,1949.3,1949.2,13.053]
[1688336841615,0.1,1949.3,1949.2,24.79552184]
[1688336841815,0.1,1949.3,1949.2,22.94552184]
[1688336842515,0.1,1949.3,1949.2,33.01482184]
[1688336842647,0.0406002,1949.5,1949.4,9.947]
[1688336842855,13.6895004,1950.8,1950.6,9.947]
[1688336843164,0.1,1950.9,1950.6,9.947]
[1688336843165,0.1,1950.9,1950.8,9.947]
[1688336843323,7.0,1953.5,1952.0,3.106]
[1688336843523,7.0,1953.5,1952.8,8.553]
[1688336843524,0.13105555,1953.3,1952.8,8.553]
[1688336843790,1.46653561,1954.1,1953.0,5.447]
[1688336843791,0.32,1953.9,1953.0,5.447]
[1688336844062,1.40810561,1954.1,1954.0,8.553]
[1688336844280,5.11768,1954.1,1954.0,15.29240486]
[1688336844562,5.11768,1954.1,1953.4,10.54]
[1688336844563,10.23536,1954.1,1953.4,77.94851627]
[1688336844724,9.83536,1954.1,1953.6,5.447]
[1688336844929,0.983536,1954.0,1953.2,26.27843614]
[1688336845249,1.85,1953.7,1952.9,2.0]
[1688336845475,25.58653,1954.2,1952.8,0.01]
[1688336845476,4.50607821,1954.7,1953.1,2.78234239]
[1688336845678,1.9662,1954.2,1953.2,6.12]
[1688336845990,47.37529137,1955.6,1954.1,0.48036871]
[1688336846260,2.55609,1956.2,1954.2,18.474]
[1688336846562,2.55522,1956.8,1956.0,2.0]
[1688336846724,2.55489,1957.1,1956.0,96.41351627]
[1688336846924,0.12507118,1957.4,1956.0,18.17308754]
[1688336847124,0.00606061,1957.5,1956.2,2.0]
[1688336847364,5.1081,1957.7,1957.4,3.684]
[1688336847566,0.12999848,1959.1,1957.5,22.418]
[1688336847890,1.03630683,1959.2,1958.6,5.447]
[1688336848026,12.66355,1958.7,1958.6,11.5801]
[1688336848227,12.56355,1958.7,1956.9,2.0]
[1688336848529,5.63953517,1958.7,1957.7,0.02]
[1688336848827,12.76517,1958.5,1958.1,1.847]
[1688336849161,2.1061835,1960.2,1960.1,2.0]
[1688336849347,2.1061835,1960.2,1960.1,11.154]
[1688336849559,10.19185104,1960.2,1959.8,1.85]
[1688336849727,6.11316464,1960.5,1960.0,10.17]
[1688336849728,1.01235464,1960.5,1960.0,10.17]
[1688336849926,5.10092,1960.5,1960.0,10.17]
[1688336850150,0.0995941,1961.7,1960.0,10.17]
[1688336850151,5.09741,1961.8,1960.0,10.20394]
[1688336850351,0.02731046,1962.0,1961.2,2.0]
[1688336850563,0.12837471,1962.4,1961.2,2.0]
[1688336850564,5.09588,1962.4,1961.3,0.943]
[1688336850767,0.00606061,1962.8,1962.7,2.0]
[1688336850925,2.11,1962.8,1962.7,97.39251627]
[1688336851131,2.11,1962.6,1962.2,0.01]
[1688336851377,3.267848,1962.8,1960.8,20.484]
[1688336851378,2.11,1961.7,1960.8,20.484]
[1688336851529,10.0964,1961.5,1961.0,3.106]
[1688336851730,25.47584,1962.7,1961.0,3.106]
[1688336851731,2.11,1962.1,1961.5,3.106]
[1688336852068,5.09912,1961.2,1960.7,3.13141836]
[1688336852237,5.09912,1961.2,1961.0,2.0]
[1688336852441,5.11499089,1961.3,1961.1,6.078]
[1688336852675,5.11499089,1961.3,1961.1,8.0]
[1688336852676,10.21364089,1961.3,1961.1,8.0]
[1688336852839,10.21364089,1961.3,1959.1,0.40785093]
[1688336852840,12.27364089,1961.3,1960.1,64.99567827]
[1688336853040,12.27364089,1961.3,1959.7,2.265]
[1688336853041,9.71977963,1961.3,1960.6,1.020193]
[1688336853369,9.71977963,1961.3,1958.6,7.0]
[1688336853370,30.60972,1960.2,1958.9,64.99567827]
[1688336853527,30.60972,1960.2,1959.1,3.106]
[1688336853731,0.97197796,1961.2,1958.5,72.03567827]
[1688336853732,30.61549,1959.8,1958.5,17.04]
[1688336854029,30.61549,1959.8,1958.6,17.209]
[1688336854231,5.10104,1960.4,1959.0,5.137]
[1688336854432,5.10049,1960.6,1959.1,30.236471]
[1688336854625,5.10099,1960.5,1959.6,6.8837]
[1688336854828,7.0,1960.1,1959.7,16.303]
[1688336855184,0.53331205,1960.9,1959.7,16.303]
[1688336855380,5.0976,1961.8,1959.9,3.624]
[1688336855684,5.09686,1962.0,1961.2,3.106]
[1688336855848,0.5331368,1961.7,1961.4,3.106]
[1688336856046,0.5331368,1961.7,1961.6,3.106]
[1688336856047,10.19525,1961.7,1961.6,3.106]
[1688336856355,5.09761,1961.7,1961.6,68.78858897]
[1688336856554,0.53306668,1961.7,1961.6,95.53658897]
[1688336856871,0.53306668,1961.7,1961.6,32.773]
[1688336856872,10.19522,1961.7,1961.6,32.773]
[1688336857072,16.312342,1961.7,1961.6,7.40993543]
[1688336857281,7.5327,1961.1,1960.6,2.0]
[1688336857431,7.0,1960.7,1960.6,2.0]
[1688336857631,7.0,1960.0,1959.4,64.99567827]
[1688336857860,2.042,1959.9,1959.5,10.206]
[1688336858119,10.20564,1959.7,1959.5,10.206]
[1688336858282,10.20564,1959.7,1959.6,2.0]
[1688336858480,17.87214518,1959.7,1959.6,7.62053]
[1688336858674,22.314,1959.0,1958.3,3.106]
[1688336858886,2.7546267,1959.7,1958.6,7.55601]
[1688336858887,7.0,1958.7,1958.6,7.55601]
[1688336859098,15.32278541,1958.7,1958.6,14.66201]
[1688336859305,12.76355,1958.7,1958.6,14.66201]
[1688336859520,2.042,1958.7,1958.6,11.55601]
[1688336859838,7.0,1959.9,1959.2,4.0]
[1688336859968,10.20411,1960.0,1958.6,18.16755354]
[1688336859969,12.7629,1958.8,1958.6,10.62469781]
[1688336860171,7.0,1958.9,1958.6,4.0]
[1688336860172,2.042,1958.7,1958.6,4.0]
[1688336860374,7.0,1958.0,1957.9,4.0]
[1688336860575,7.0,1958.0,1956.4,64.99567827]
[1688336860576,7.0,1957.8,1957.7,2.02]
[1688336860775,7.0,1957.8,1956.0,3.654]
[1688336860776,7.7,1957.8,1956.9,2.0]
[1688336861021,17.21963,1957.1,1957.0,9.7063]
[1688336861171,7.0,1957.1,1957.0,3.24289]
[1688336861380,39.6996,1957.1,1957.0,3.24289]
[1688336861588,42.6996,1957.1,1957.0,5.24289]
[1688336861899,42.6996,1957.1,1956.4,0.02]
[1688336861900,7.0,1956.9,1956.8,2.0]
[1688336862111,27.44048,1956.9,1956.8,12.221]
[1688336862455,12.7753,1956.9,1956.8,12.218388]
[1688336862579,3.0,1957.1,1957.0,2.0]
[1688336862781,2.042,1958.4,1957.9,2.0]
[1688336863095,0.02608897,1959.2,1959.1,2.0]
[1688336863292,7.68226897,1959.2,1959.1,14.214]
[1688336863629,7.0,1959.0,1957.9,2.042]
[1688336863839,7.0,1959.0,1957.7,10.24]
[1688336863840,7.0,1958.6,1958.0,10.212]
[1688336864053,7.0,1958.4,1958.0,10.212]
[1688336864179,7.0,1958.4,1958.3,2.0]
[1688336864536,7.0,1958.4,1958.3,12.74158317]
[1688336864537,17.2124,1958.4,1958.3,12.74158317]
[1688336864674,17.2124,1958.4,1958.3,12.213]
[1688336864881,1.04608897,1959.2,1959.1,2.0]
[1688336865080,1.04608897,1959.2,1959.1,15.315]
[1688336865279,5.13020897,1959.2,1959.1,15.315]
[1688336865482,18.25432897,1959.2,1958.8,4.0]
[1688336865719,18.25432897,1959.2,1958.2,14.0]
[1688336865720,7.0,1958.3,1958.2,14.0]
[1688336865906,22.31938,1958.3,1958.2,30.426]
[1688336866091,22.31938,1958.3,1958.2,11.9673137]
[1688336866092,23.33938,1958.3,1958.2,11.9673137]
[1688336866281,16.33938,1958.3,1958.2,15.9673137]
[1688336866488,23.33938,1958.3,1958.2,15.9673137]
[1688336866830,25.673318,1958.3,1958.2,18.6147137]
[1688336866980,28.673318,1958.3,1958.2,10.7891337]
[1688336867185,28.673318,1958.3,1958.2,15.4835037]
[1688336867481,12.76615,1958.3,1958.2,15.0706281]
[1688336867687,12.76615,1958.3,1958.2,27.319]
[1688336867893,1.02,1958.8,1958.7,4.0]
[1688336867894,3.57259,1958.8,1958.7,4.0]
[1688336868100,19.76291,1958.8,1958.7,14.211]
[1688336868294,20.78291,1958.8,1958.7,14.211]
[1688336869595,19.76291,1958.8,1958.7,14.211]
[1688336869807,19.76291,1958.8,1958.7,29.658]
[1688336870016,20.78291,1958.8,1958.7,29.658]
[1688336870239,19.76291,1958.8,1958.7,29.658]
[1688336870448,6.08975,1958.8,1958.7,27.317]
[1688336870648,5.1047,1959.0,1958.9,7.106]
[1688336870930,10.23455897,1959.2,1959.1,4.5165]
[1688336871137,10.23455897,1959.2,1958.7,12.0]
[1688336871138,7.0,1958.8,1958.7,12.0]
[1688336871337,22.31548,1958.8,1958.7,12.0]
[1688336871516,23.33548,1958.8,1958.7,27.658]
[1688336871835,17.74412432,1958.8,1958.7,15.658]
[1688336872003,20.7829,1958.8,1958.7,15.658]
[1688336872204,23.116436,1958.8,1958.7,10.211]
[1688336872438,7.0,1958.5,1958.3,10.0]
[1688336872740,7.0,1958.3,1958.2,12.0]
[1688336872902,7.0,1958.3,1958.2,22.213]
[1688336873089,21.23292,1958.3,1958.2,22.213]
[1688336873435,24.377452,1958.3,1958.2,14.95946]
[1688336873635,34.5990713,1958.3,1958.2,5.78429]
[1688336873789,7.0,1957.8,1957.7,2.0]
[1688336873990,15.10776,1957.8,1957.7,12.216]
[1688336874248,26.3433,1957.8,1957.7,12.216]
[1688336874536,26.3433,1957.8,1957.7,17.663]
[1688336874750,30.02241078,1957.8,1957.7,10.216]
[1688336874903,30.02241078,1957.8,1957.7,3.30057]
[1688336875223,7.0,1956.5,1955.8,2.0]
[1688336875395,19.7779,1956.5,1956.4,12.243]
[1688336875597,23.7979,1956.5,1956.4,12.243]
[1688336875919,21.24232,1956.5,1956.4,19.69]
[1688336876136,21.24232,1956.5,1956.4,24.767]
[1688336876137,4.02,1956.5,1956.4,24.767]
[1688336876288,2.31776103,1956.5,1956.4,90.78544027]
[1688336876598,5.10941,1957.2,1957.1,10.553]
[1688336876803,1.37247785,1957.0,1956.9,2.0]
[1688336877127,9.03726785,1957.0,1956.9,12.22]
[1688336877287,14.14712785,1957.0,1956.9,12.22]
[1688336877630,14.14712785,1957.0,1956.9,10.22]
[1688336877631,15.81494468,1957.0,1956.9,10.22]
[1688336877806,1.37247785,1956.5,1956.4,0.02]
[1688336878004,1.37247785,1956.5,1956.4,10.243]
[1688336878005,16.70595785,1956.5,1956.4,10.243]
[1688336878313,14.15037785,1956.5,1956.4,10.243]
[1688336878553,18.17037785,1956.5,1956.4,10.243]
[1688336878853,18.17037785,1956.5,1956.4,20.243]
[1688336879601,17.15037785,1956.5,1956.4,20.243]
[1688336879935,17.15037785,1956.5,1956.4,19.69]
[1688336880144,19.70595785,1956.5,1956.4,15.69]
[1688336880433,20.72595785,1956.5,1956.4,15.69]
[1688336880790,10.22077,1956.8,1956.6,5.447]
[1688336880791,5.1107,1956.7,1956.6,5.447]
[1688336880995,1.37247785,1956.8,1956.6,22.22778816]
[1688336881226,5.11064,1956.7,1956.6,23.24963962]
[1688336881430,1.37247785,1957.2,1957.0,5.447]
[1688336881609,1.37247785,1956.9,1956.6,0.50202078]
[1688336881811,10.21926,1957.1,1956.4,1.042305]
[1688336881812,1.37247785,1956.6,1956.4,1.042305]
[1688336882013,14.14972785,1956.6,1956.5,20.444]
[1688336882238,16.33130364,1956.6,1956.5,19.444]
[1688336882442,16.33130364,1956.6,1956.5,16.8801]
[1688336882443,14.14972785,1956.6,1956.5,16.8801]
[1688336882588,14.14972785,1956.6,1956.5,22.3271]
[1688336883346,4.32643526,1956.6,1956.5,25.4331]
[1688336883496,1.37247785,1956.8,1956.6,12.553]
[1688336883703,10.22136,1956.7,1956.6,16.10295723]
[1688336883897,10.22136,1956.7,1956.6,9.447]
[1688336884110,10.22136,1956.7,1956.6,19.669]
[1688336884429,5.11033,1956.9,1956.8,4.0]
[1688336884642,6.48280785,1956.9,1956.8,19.668]
[1688336884795,6.48280785,1956.9,1956.8,20.1845]
[1688336884796,7.00280785,1956.9,1956.8,20.1845]
[1688336885004,12.11313785,1956.9,1956.8,23.2905]
[1688336885425,12.11313785,1956.9,1956.8,19.668]
[1688336885796,12.11313785,1956.9,1956.8,27.668]
[1688336886111,13.83544964,1956.9,1956.8,14.77583]
[1688336886424,13.83544964,1956.9,1956.8,6.4902]
[1688336886592,22.11313785,1956.9,1956.8,15.7112]
[1688336886794,1.022925,1957.2,1957.1,4.0]
[1688336887040,10.21906,1957.2,1957.1,9.447]
[1688336887193,10.21906,1957.2,1957.1,7.447]
[1688336887194,11.59153785,1957.2,1957.1,7.447]
[1688336887917,10.21906,1957.2,1957.1,7.447]
[1688336888110,5.10953,1957.2,1957.1,7.447]
[1688336888304,6.48200785,1957.2,1957.1,7.447]
[1688336888597,3.92689785,1957.4,1957.1,7.447]
[1688336888798,3.92653785,1957.7,1957.6,5.447]
[1688336889011,14.14259785,1957.7,1957.6,7.447]
[1688336889300,14.14259785,1957.7,1957.6,10.00578816]
[1688336889501,14.14259785,1957.7,1957.6,8.00578816]
[1688336890434,14.40259785,1957.7,1957.6,8.00578816]
[1688336891031,17.40259785,1957.7,1957.6,8.00578816]
[1688336891434,0.26,1958.0,1957.9,2.0]
[1688336891734,0.26,1958.0,1957.9,8.00578816]
[1688336891735,14.40064785,1958.0,1957.9,8.00578816]
[1688336891938,1.37247785,1957.7,1957.5,2.0]
[1688336892142,1.37247785,1957.7,1957.5,2.55878816]
[1688336892143,15.32486,1957.6,1957.5,2.55878816]
[1688336892310,15.58486,1957.6,1957.5,2.55878816]
[1688336892503,1.37247785,1957.3,1957.2,12.0]
[1688336892836,14.40514785,1957.3,1957.2,4.55878816]
[1688336893203,14.40514785,1957.3,1957.2,10.00578816]
[1688336893204,16.03267,1957.3,1957.2,10.00578816]
[1688336893403,15.77267,1957.3,1957.2,10.00578816]
[1688336893839,17.40514785,1957.3,1957.2,10.00578816]
[1688336894038,17.40514785,1957.3,1957.2,20.22678816]
[1688336894248,16.03267,1957.3,1957.2,15.666]
[1688336894408,18.02863779,1957.3,1957.2,10.219]
[1688336894603,18.02863779,1957.3,1956.5,8.6581]
[1688336894604,1.37247785,1956.7,1956.5,8.6581]
[1688336894912,13.03725,1956.6,1956.5,8.6581]
[1688336895106,13.03725,1956.6,1956.5,18.8801]
[1688336895445,15.77725,1956.6,1956.5,24.3271]
[1688336896322,16.03725,1956.6,1956.5,22.3271]
[1688336896526,15.77725,1956.6,1956.5,22.3271]
[1688336896735,15.77725,1956.6,1956.5,24.3271]
[1688336896923,15.77725,1956.6,1956.5,22.3271]
[1688336897709,15.77725,1956.6,1956.5,24.3271]
[1688336897918,16.03725,1956.6,1956.5,16.8801]
[1688336898432,16.03725,1956.6,1956.5,19.43888816]
[1688336898909,10.4818,1956.6,1956.5,26.88588816]
[1688336899112,0.26,1956.6,1956.5,26.90122307]
[1688336899315,5.10969,1957.1,1957.0,7.447]
[1688336899520,3.92651785,1957.7,1957.6,5.447]
[1688336899748,10.21324,1958.3,1957.4,2.0]
[1688336899749,5.10527,1958.8,1958.2,7.447]
[1688336900050,25.52052,1959.3,1958.4,5.07528816]
[1688336900051,10.21214,1958.5,1958.4,5.07528816]
[1688336900408,10.21214,1958.5,1958.4,3.07528816]
[1688336901120,10.21214,1958.5,1958.4,2.55878816]
[1688336901342,12.76511,1958.5,1958.4,2.55878816]
[1688336901540,10.21214,1958.5,1958.4,2.55878816]
[1688336901849,10.21214,1958.5,1958.4,12.55878816]
[1688336902416,14.39758785,1958.5,1958.4,10.0]
[1688336902616,14.39758785,1958.5,1958.3,5.447]
[1688336902953,0.26,1958.4,1958.3,8.00578816]
[1688336903154,13.0255,1958.4,1958.3,8.00578816]
[1688336903316,13.0255,1958.4,1958.1,10.0]
[1688336903317,1.37247785,1958.3,1958.1,10.0]
[1688336903518,15.32018,1958.2,1958.1,10.0]
[1688336903810,1.37247785,1957.9,1957.5,0.5165]
[1688336904014,12.76942,1957.8,1957.6,2.55878816]
[1688336904416,12.76942,1957.8,1957.7,5.447]
[1688336904645,12.76942,1957.8,1957.7,8.00578816]
[1688336904646,5.10777,1957.8,1957.7,8.00578816]
[1688336904855,11.84801785,1957.8,1957.7,8.00578816]
[1688336905020,14.84801785,1957.8,1957.7,8.00578816]
[1688336905326,14.58801785,1957.8,1957.7,5.447]
[1688336905529,14.58801785,1957.8,1957.7,5.397]
[1688336905530,10.21554,1957.8,1957.7,5.397]
[1688336905742,2.55376,1957.9,1957.6,5.8635]
[1688336905743,5.36766,1957.9,1957.6,5.8635]
[1688336906070,1.37247785,1957.7,1957.5,10.0]
[1688336906356,1.37247785,1957.7,1957.5,4.42402]
[1688336906357,15.32486,1957.6,1957.5,4.42402]
[1688336906562,21.81087785,1957.1,1957.0,10.22]